[Event "Titled Tuesday Blitz May 24 Early 2022"]
[White "Vasquez Schroeder, Rodrigo"]
[Black "Keymer, Vincent"]
[WhiteFideId "3400042"]
[BlackFideId "12940690"]
[WhiteElo "2567"]
[BlackElo "2548"]
[Result "0-1"]
[Round "10"]
[TimeControl "180+1"]
[Date "2022.05.24"]
[WhiteClock "0:00:21"]
[BlackClock "0:00:03"]

1. e4 {[%clk 0:03:00]}  c6 {[%clk 0:02:59]} 2. Nf3 {[%clk 0:02:56]}  d5 {[%clk 0:03:00]} 3. d3 {[%clk 0:02:56]}  dxe4 {[%clk 0:03:00]} 4. dxe4 {[%clk 0:02:57]}  Qxd1+ {[%clk 0:03:01]} 5. Kxd1 {[%clk 0:02:57]}  Nd7 {[%clk 0:03:01]} 6. Nfd2 {[%clk 0:02:55]}  f5 {[%clk 0:03:00]} 7. Nc3 {[%clk 0:02:51]}  Ngf6 {[%clk 0:02:58]} 8. f3 {[%clk 0:02:46]}  e5 {[%clk 0:02:56]} 9. exf5 {[%clk 0:02:26]}  Nc5 {[%clk 0:02:56]} 10. Nc4 {[%clk 0:02:16]}  Bxf5 {[%clk 0:02:47]} 11. Nxe5 {[%clk 0:02:07]}  Bd6 {[%clk 0:02:48]} 12. Nd3 {[%clk 0:02:00]}  O-O-O {[%clk 0:02:42]} 13. Be3 {[%clk 0:02:00]}  Rhe8 {[%clk 0:02:34]} 14. Kd2 {[%clk 0:02:00]}  Re7 {[%clk 0:01:18]} 15. Re1 {[%clk 0:01:53]}  Red7 {[%clk 0:01:10]} 16. Bxc5 {[%clk 0:01:48]}  Bxc5 {[%clk 0:01:10]} 17. Kc1 {[%clk 0:01:48]}  Bd4 {[%clk 0:01:07]} 18. Ne4 {[%clk 0:01:38]}  Nxe4 {[%clk 0:00:53]} 19. fxe4 {[%clk 0:01:37]}  Bg6 {[%clk 0:00:54]} 20. Be2 {[%clk 0:01:34]}  Bxe4 {[%clk 0:00:40]} 21. Bg4 {[%clk 0:01:20]}  Bxg2 {[%clk 0:00:40]} 22. Bxd7+ {[%clk 0:01:20]}  Rxd7 {[%clk 0:00:20]} 23. Re8+ {[%clk 0:01:19]}  Kc7 {[%clk 0:00:20]} 24. Rhe1 {[%clk 0:01:18]}  Bf6 {[%clk 0:00:20]} 25. Kb1 {[%clk 0:01:04]}  a5 {[%clk 0:00:19]} 26. a4 {[%clk 0:01:04]}  Bh3 {[%clk 0:00:17]} 27. Nf4 {[%clk 0:01:02]}  Bf5 {[%clk 0:00:18]} 28. Ne6+ {[%clk 0:01:02]}  Kb6 {[%clk 0:00:18]} 29. Rf1 {[%clk 0:00:59]}  Bg6 {[%clk 0:00:16]} 30. Rh8 {[%clk 0:00:54]}  Rd2 {[%clk 0:00:16]} 31. Rc1 {[%clk 0:00:47]}  Rxh2 {[%clk 0:00:16]} 32. Nf8 {[%clk 0:00:44]}  Bf5 {[%clk 0:00:14]} 33. Rg8 {[%clk 0:00:41]}  h5 {[%clk 0:00:14]} 34. Rh8 {[%clk 0:00:41]}  Bg5 {[%clk 0:00:15]} 35. Rf1 {[%clk 0:00:37]}  Bxc2+ {[%clk 0:00:14]} 36. Ka2 {[%clk 0:00:38]}  Bxa4 {[%clk 0:00:13]} 37. Nd7+ {[%clk 0:00:38]}  Kc7 {[%clk 0:00:07]} 38. Rf7 {[%clk 0:00:37]}  Kd6 {[%clk 0:00:07]} 39. Re8 {[%clk 0:00:31]}  Bb5 {[%clk 0:00:07]} 40. Ne5 {[%clk 0:00:30]}  Bf6 {[%clk 0:00:05]} 41. Rd7+ {[%clk 0:00:30]}  Kc5 {[%clk 0:00:05]} 42. Rxb7 {[%clk 0:00:24]}  h4 {[%clk 0:00:03]} 43. Nd7+ {[%clk 0:00:24]}  Kb4 {[%clk 0:00:02]} 44. Nxf6 {[%clk 0:00:25]}  gxf6 {[%clk 0:00:03]} 45. Re4+ {[%clk 0:00:23]}  Kc5 {[%clk 0:00:03]} 46. Rh7 {[%clk 0:00:24]}  Bc4+ {[%clk 0:00:03]} 47. Kb1 {[%clk 0:00:21]}  Bd3+ {[%clk 0:00:03]} 0-1


[Site "https://www.chess.com"]

[Event "Titled Tuesday Blitz May 24 Early 2022"]
[White "Vidit, Santosh Gujrathi"]
[Black "Bacrot, Etienne"]
[WhiteFideId "5029465"]
[BlackFideId "605506"]
[WhiteElo "2654"]
[BlackElo "2673"]
[Result "1-0"]
[Round "10"]
[TimeControl "180+1"]
[Date "2022.05.24"]
[WhiteClock "0:00:03"]
[BlackClock "0:00:09"]

1. d4 {[%clk 0:03:00]}  d5 {[%clk 0:03:00]} 2. c4 {[%clk 0:03:00]}  c6 {[%clk 0:03:00]} 3. cxd5 {[%clk 0:02:58]}  cxd5 {[%clk 0:03:00]} 4. Bf4 {[%clk 0:02:59]}  Nc6 {[%clk 0:03:00]} 5. e3 {[%clk 0:02:59]}  Nf6 {[%clk 0:02:59]} 6. Nc3 {[%clk 0:02:59]}  Bf5 {[%clk 0:02:57]} 7. Nf3 {[%clk 0:02:55]}  e6 {[%clk 0:02:57]} 8. Bb5 {[%clk 0:02:54]}  Bb4 {[%clk 0:02:55]} 9. O-O {[%clk 0:02:29]}  O-O {[%clk 0:02:54]} 10. Rc1 {[%clk 0:02:24]}  Rc8 {[%clk 0:02:54]} 11. Na4 {[%clk 0:02:20]}  Bg4 {[%clk 0:02:35]} 12. h3 {[%clk 0:02:20]}  Bh5 {[%clk 0:02:35]} 13. g4 {[%clk 0:02:16]}  Bg6 {[%clk 0:02:34]} 14. Bxc6 {[%clk 0:02:14]}  bxc6 {[%clk 0:02:34]} 15. Ne5 {[%clk 0:02:13]}  Qe8 {[%clk 0:02:00]} 16. Qb3 {[%clk 0:02:12]}  Bd2 {[%clk 0:01:57]} 17. Rcd1 {[%clk 0:02:10]}  Ba5 {[%clk 0:01:54]} 18. Nxg6 {[%clk 0:01:49]}  hxg6 {[%clk 0:01:49]} 19. Bd6 {[%clk 0:01:49]}  Ne4 {[%clk 0:01:41]} 20. Bxf8 {[%clk 0:01:49]}  Qxf8 {[%clk 0:01:41]} 21. Qc2 {[%clk 0:01:46]}  Qd6 {[%clk 0:01:38]} 22. f3 {[%clk 0:01:35]}  Nf6 {[%clk 0:01:26]} 23. Qh2 {[%clk 0:01:25]}  Qb4 {[%clk 0:01:25]} 24. b3 {[%clk 0:01:25]}  Nd7 {[%clk 0:01:21]} 25. Rc1 {[%clk 0:01:20]}  Qe7 {[%clk 0:01:02]} 26. Qe2 {[%clk 0:01:17]}  e5 {[%clk 0:01:01]} 27. Qa6 {[%clk 0:01:14]}  Qd8 {[%clk 0:00:52]} 28. Rxc6 {[%clk 0:01:13]}  Rb8 {[%clk 0:00:49]} 29. Kg2 {[%clk 0:00:39]}  Bd2 {[%clk 0:00:41]} 30. Qd3 {[%clk 0:00:32]}  Bb4 {[%clk 0:00:41]} 31. Rfc1 {[%clk 0:00:32]}  Kh7 {[%clk 0:00:39]} 32. Nc5 {[%clk 0:00:26]}  e4 {[%clk 0:00:23]} 33. fxe4 {[%clk 0:00:22]}  Bxc5 {[%clk 0:00:23]} 34. R6xc5 {[%clk 0:00:09]}  dxe4 {[%clk 0:00:21]} 35. Qxe4 {[%clk 0:00:08]}  Nxc5 {[%clk 0:00:21]} 36. Rxc5 {[%clk 0:00:09]}  Qf6 {[%clk 0:00:18]} 37. Qf4 {[%clk 0:00:06]}  Qd8 {[%clk 0:00:17]} 38. Qxf7 {[%clk 0:00:06]}  Rb6 {[%clk 0:00:16]} 39. Rc7 {[%clk 0:00:05]}  Qa8+ {[%clk 0:00:14]} 40. Kg3 {[%clk 0:00:03]}  Qh8 {[%clk 0:00:14]} 41. Re7 {[%clk 0:00:03]}  Rf6 {[%clk 0:00:14]} 42. Qxf6 {[%clk 0:00:03]}  Qb8+ {[%clk 0:00:12]} 43. Qe5 {[%clk 0:00:03]}  Qxe5+ {[%clk 0:00:09]} 44. dxe5 {[%clk 0:00:03]} 1-0


[Site "https://www.chess.com"]

[Event "Titled Tuesday Blitz May 24 Early 2022"]
[White "Vidonyak, Roman"]
[Black "Al-Tarboush, Ward"]
[WhiteFideId "14100622"]
[BlackFideId "7601450"]
[WhiteElo "2398"]
[BlackElo "2294"]
[Result "0-1"]
[Round "10"]
[TimeControl "180+1"]
[Date "2022.05.25"]
[WhiteClock "0:00:05"]
[BlackClock "0:00:11"]

1. d4 {[%clk 0:03:00]}  b6 {[%clk 0:02:57]} 2. c4 {[%clk 0:02:59]}  Bb7 {[%clk 0:02:57]} 3. Nc3 {[%clk 0:03:00]}  Nf6 {[%clk 0:02:56]} 4. d5 {[%clk 0:02:59]}  e6 {[%clk 0:02:52]} 5. a3 {[%clk 0:02:57]}  exd5 {[%clk 0:02:46]} 6. cxd5 {[%clk 0:02:58]}  c6 {[%clk 0:02:45]} 7. e4 {[%clk 0:02:57]}  cxd5 {[%clk 0:02:45]} 8. exd5 {[%clk 0:02:58]}  Bc5 {[%clk 0:02:41]} 9. Bc4 {[%clk 0:02:44]}  O-O {[%clk 0:02:39]} 10. Nge2 {[%clk 0:02:41]}  Ng4 {[%clk 0:02:28]} 11. Nd4 {[%clk 0:02:13]}  Nxf2 {[%clk 0:02:22]} 12. Kxf2 {[%clk 0:02:07]}  Qh4+ {[%clk 0:02:22]} 13. g3 {[%clk 0:02:01]}  Qxd4+ {[%clk 0:02:02]} 14. Qxd4 {[%clk 0:01:58]}  Bxd4+ {[%clk 0:02:03]} 15. Kg2 {[%clk 0:01:57]}  d6 {[%clk 0:02:03]} 16. Nb5 {[%clk 0:01:57]}  Bc5 {[%clk 0:01:40]} 17. Nc7 {[%clk 0:01:55]}  b5 {[%clk 0:01:41]} 18. Bb3 {[%clk 0:01:49]}  Nc6 {[%clk 0:01:34]} 19. Nxa8 {[%clk 0:01:44]}  Nd4 {[%clk 0:01:31]} 20. Ba2 {[%clk 0:01:42]}  Re8 {[%clk 0:01:28]} 21. Nc7 {[%clk 0:01:27]}  Re2+ {[%clk 0:01:25]} 22. Kh3 {[%clk 0:01:26]}  Bc8+ {[%clk 0:01:22]} 23. Ne6 {[%clk 0:01:25]}  fxe6 {[%clk 0:01:19]} 24. dxe6 {[%clk 0:01:23]}  Nxe6 {[%clk 0:01:20]} 25. Bxe6+ {[%clk 0:01:13]}  Bxe6+ {[%clk 0:01:19]} 26. g4 {[%clk 0:01:06]}  h5 {[%clk 0:01:05]} 27. Bf4 {[%clk 0:01:04]}  g5 {[%clk 0:00:45]} 28. Bxg5 {[%clk 0:00:42]}  Bxg4+ {[%clk 0:00:44]} 29. Kg3 {[%clk 0:00:39]}  Bf2+ {[%clk 0:00:43]} 30. Kf4 {[%clk 0:00:18]}  Bd4 {[%clk 0:00:37]} 31. Bh4 {[%clk 0:00:15]}  Be3+ {[%clk 0:00:22]} 32. Ke4 {[%clk 0:00:07]}  Bf2+ {[%clk 0:00:22]} 33. Kd3 {[%clk 0:00:07]}  Bxh4 {[%clk 0:00:20]} 34. h3 {[%clk 0:00:05]}  Bf3 {[%clk 0:00:18]} 35. Rhg1+ {[%clk 0:00:05]}  Kh7 {[%clk 0:00:17]} 36. Raf1 {[%clk 0:00:06]}  Bf2 {[%clk 0:00:15]} 37. Rxf2 {[%clk 0:00:02]}  Rxf2 {[%clk 0:00:14]} 38. Rc1 {[%clk 0:00:03]}  Rxb2 {[%clk 0:00:12]} 39. Rc7+ {[%clk 0:00:03]}  Kg6 {[%clk 0:00:11]} 40. Rxa7 {[%clk 0:00:04]}  Rb3+ {[%clk 0:00:11]} 41. Kd2 {[%clk 0:00:04]}  Be4 {[%clk 0:00:10]} 42. h4 {[%clk 0:00:04]}  d5 {[%clk 0:00:11]} 43. Ra6+ {[%clk 0:00:04]}  Kf5 {[%clk 0:00:10]} 44. Rh6 {[%clk 0:00:05]}  Kg4 {[%clk 0:00:11]} 0-1


[Site "https://www.chess.com"]

[Event "Titled Tuesday Blitz May 24 Early 2022"]
[White "Vittorino, Carlo Giovanni"]
[Black "Pesotskiy, Mikhail"]
[WhiteFideId "4401247"]
[BlackFideId "34164453"]
[WhiteElo "2233"]
[BlackElo "2010"]
[Result "0-1"]
[Round "10"]
[TimeControl "180+1"]
[Date "2022.05.25"]
[WhiteClock "0:00:16"]
[BlackClock "0:01:25"]

1. d4 {[%clk 0:03:00]}  Nf6 {[%clk 0:02:59]} 2. c4 {[%clk 0:02:59]}  e6 {[%clk 0:02:59]} 3. Nc3 {[%clk 0:02:59]}  Bb4 {[%clk 0:03:00]} 4. Nf3 {[%clk 0:02:58]}  b6 {[%clk 0:03:00]} 5. e3 {[%clk 0:02:54]}  Bb7 {[%clk 0:03:00]} 6. Bd3 {[%clk 0:02:55]}  O-O {[%clk 0:02:59]} 7. O-O {[%clk 0:02:55]}  d6 {[%clk 0:02:59]} 8. Qc2 {[%clk 0:02:54]}  Nbd7 {[%clk 0:02:58]} 9. Ne4 {[%clk 0:02:48]}  d5 {[%clk 0:02:57]} 10. cxd5 {[%clk 0:02:37]}  exd5 {[%clk 0:02:55]} 11. Nxf6+ {[%clk 0:02:36]}  Nxf6 {[%clk 0:02:56]} 12. Ne5 {[%clk 0:02:34]}  Bd6 {[%clk 0:02:43]} 13. Bd2 {[%clk 0:02:31]}  c5 {[%clk 0:02:42]} 14. f4 {[%clk 0:02:25]}  Qe7 {[%clk 0:02:34]} 15. Bc3 {[%clk 0:02:17]}  Ne4 {[%clk 0:02:32]} 16. Bxe4 {[%clk 0:02:14]}  dxe4 {[%clk 0:02:33]} 17. dxc5 {[%clk 0:01:43]}  Bxc5 {[%clk 0:02:34]} 18. Bd4 {[%clk 0:01:33]}  Bxd4 {[%clk 0:02:31]} 19. exd4 {[%clk 0:01:34]}  f6 {[%clk 0:02:28]} 20. Ng4 {[%clk 0:01:33]}  Rac8 {[%clk 0:02:24]} 21. Qd2 {[%clk 0:01:31]}  Rfd8 {[%clk 0:02:22]} 22. Ne3 {[%clk 0:01:29]}  Ba6 {[%clk 0:02:20]} 23. Rf2 {[%clk 0:01:19]}  Bd3 {[%clk 0:02:19]} 24. d5 {[%clk 0:01:19]}  Qc5 {[%clk 0:02:14]} 25. Kh1 {[%clk 0:01:19]}  Qd4 {[%clk 0:02:05]} 26. Re1 {[%clk 0:01:13]}  Kh8 {[%clk 0:02:03]} 27. h3 {[%clk 0:01:11]}  Rc5 {[%clk 0:01:44]} 28. Kh2 {[%clk 0:01:10]}  Rdc8 {[%clk 0:01:44]} 29. Qd1 {[%clk 0:01:10]}  h6 {[%clk 0:01:42]} 30. Qg4 {[%clk 0:01:08]}  R8c7 {[%clk 0:01:32]} 31. Qf5 {[%clk 0:00:55]}  Rc1 {[%clk 0:01:26]} 32. Rxc1 {[%clk 0:00:52]}  Rxc1 {[%clk 0:01:27]} 33. Ng4 {[%clk 0:00:18]}  e3 {[%clk 0:01:28]} 34. Rf3 {[%clk 0:00:16]}  Bxf5 {[%clk 0:01:25]} 0-1


[Site "https://www.chess.com"]

[Event "Titled Tuesday Blitz May 24 Early 2022"]
[White "Volkov, Maksim"]
[Black "Shtyka, Sergey"]
[WhiteFideId "54123070"]
[BlackFideId "4138465"]
[WhiteElo "2155"]
[BlackElo "2014"]
[Result "1-0"]
[Round "10"]
[TimeControl "180+1"]
[Date "2022.05.25"]
[WhiteClock "0:00:20"]
[BlackClock "0:00:01"]

1. d4 {[%clk 0:03:00]}  c5 {[%clk 0:02:59]} 2. d5 {[%clk 0:03:00]}  e5 {[%clk 0:02:59]} 3. c4 {[%clk 0:02:58]}  d6 {[%clk 0:03:00]} 4. Nc3 {[%clk 0:02:58]}  Be7 {[%clk 0:03:00]} 5. g3 {[%clk 0:02:58]}  Nf6 {[%clk 0:02:59]} 6. Bg2 {[%clk 0:02:57]}  O-O {[%clk 0:02:59]} 7. Nf3 {[%clk 0:02:56]}  Nbd7 {[%clk 0:02:59]} 8. O-O {[%clk 0:02:56]}  a6 {[%clk 0:03:00]} 9. Rb1 {[%clk 0:02:55]}  Rb8 {[%clk 0:02:59]} 10. b4 {[%clk 0:02:45]}  cxb4 {[%clk 0:02:58]} 11. Rxb4 {[%clk 0:02:46]}  Nc5 {[%clk 0:02:59]} 12. Be3 {[%clk 0:02:39]}  Nfd7 {[%clk 0:02:53]} 13. Rb2 {[%clk 0:02:24]}  Qa5 {[%clk 0:02:44]} 14. Qc2 {[%clk 0:02:21]}  b5 {[%clk 0:02:43]} 15. cxb5 {[%clk 0:02:13]}  axb5 {[%clk 0:02:42]} 16. a3 {[%clk 0:02:08]}  Qxa3 {[%clk 0:01:46]} 17. Rxb5 {[%clk 0:01:57]}  Rxb5 {[%clk 0:01:41]} 18. Nxb5 {[%clk 0:01:58]}  Qa5 {[%clk 0:01:33]} 19. Rb1 {[%clk 0:01:55]}  Ba6 {[%clk 0:01:31]} 20. Bd2 {[%clk 0:01:51]}  Qd8 {[%clk 0:01:13]} 21. Na7 {[%clk 0:01:51]}  Bxe2 {[%clk 0:00:59]} 22. Nc6 {[%clk 0:01:35]}  Qe8 {[%clk 0:00:59]} 23. Ne1 {[%clk 0:01:18]}  Bh5 {[%clk 0:00:39]} 24. Qb2 {[%clk 0:01:11]}  Bg6 {[%clk 0:00:36]} 25. Ra1 {[%clk 0:01:11]}  Bf6 {[%clk 0:00:32]} 26. Bc3 {[%clk 0:01:06]}  e4 {[%clk 0:00:31]} 27. Bxf6 {[%clk 0:01:05]}  Nxf6 {[%clk 0:00:32]} 28. Nc2 {[%clk 0:01:03]}  Nxd5 {[%clk 0:00:29]} 29. N2d4 {[%clk 0:00:59]}  Nf6 {[%clk 0:00:23]} 30. Ra7 {[%clk 0:00:57]}  e3 {[%clk 0:00:21]} 31. Ne7+ {[%clk 0:00:55]}  Kh8 {[%clk 0:00:20]} 32. fxe3 {[%clk 0:00:56]}  Qb8 {[%clk 0:00:16]} 33. Ra8 {[%clk 0:00:51]}  Qxa8 {[%clk 0:00:12]} 34. Bxa8 {[%clk 0:00:52]}  Rxa8 {[%clk 0:00:12]} 35. Nxg6+ {[%clk 0:00:42]}  hxg6 {[%clk 0:00:12]} 36. Qb6 {[%clk 0:00:43]}  Ra1+ {[%clk 0:00:11]} 37. Kg2 {[%clk 0:00:43]}  Ra2+ {[%clk 0:00:11]} 38. Kh3 {[%clk 0:00:43]}  Nce4 {[%clk 0:00:11]} 39. Nf3 {[%clk 0:00:33]}  g5 {[%clk 0:00:09]} 40. g4 {[%clk 0:00:26]}  Nf2+ {[%clk 0:00:07]} 41. Kg3 {[%clk 0:00:25]}  N2e4+ {[%clk 0:00:05]} 42. Kh3 {[%clk 0:00:25]}  Nf2+ {[%clk 0:00:05]} 43. Kg2 {[%clk 0:00:26]}  N2xg4+ {[%clk 0:00:05]} 44. Kg3 {[%clk 0:00:26]}  Ne5 {[%clk 0:00:04]} 45. Nxg5 {[%clk 0:00:25]}  Re2 {[%clk 0:00:02]} 46. Qxd6 {[%clk 0:00:20]}  Rxe3+ {[%clk 0:00:01]} 47. Kf4 {[%clk 0:00:20]} 1-0


[Site "https://www.chess.com"]

[Event "Titled Tuesday Blitz May 24 Early 2022"]
[White "Yeletsky, Ivan"]
[Black "Barria Zuniga, Daniel"]
[WhiteFideId "24180327"]
[BlackFideId "3400816"]
[WhiteElo "2319"]
[BlackElo "2414"]
[Result "0-1"]
[Round "10"]
[TimeControl "180+1"]
[Date "2022.05.24"]
[WhiteClock "0:00:02"]
[BlackClock "0:00:03"]

1. e4 {[%clk 0:03:00]}  e6 {[%clk 0:02:58]} 2. d4 {[%clk 0:03:00]}  d5 {[%clk 0:02:57]} 3. Nc3 {[%clk 0:02:59]}  Bb4 {[%clk 0:02:56]} 4. e5 {[%clk 0:02:59]}  Ne7 {[%clk 0:02:56]} 5. a3 {[%clk 0:03:00]}  Bxc3+ {[%clk 0:02:56]} 6. bxc3 {[%clk 0:03:00]}  c5 {[%clk 0:02:57]} 7. h4 {[%clk 0:03:00]}  Qc7 {[%clk 0:02:52]} 8. h5 {[%clk 0:03:00]}  h6 {[%clk 0:02:51]} 9. Rb1 {[%clk 0:02:45]}  Nbc6 {[%clk 0:02:50]} 10. Nf3 {[%clk 0:02:33]}  Bd7 {[%clk 0:02:46]} 11. Bd3 {[%clk 0:02:30]}  O-O-O {[%clk 0:02:38]} 12. O-O {[%clk 0:02:24]}  f6 {[%clk 0:02:34]} 13. Re1 {[%clk 0:01:51]}  c4 {[%clk 0:02:21]} 14. Bf1 {[%clk 0:01:51]}  f5 {[%clk 0:02:20]} 15. a4 {[%clk 0:01:45]}  g5 {[%clk 0:02:16]} 16. hxg6 {[%clk 0:01:38]}  Nxg6 {[%clk 0:02:15]} 17. Ba3 {[%clk 0:01:39]}  Rdg8 {[%clk 0:02:13]} 18. Bd6 {[%clk 0:01:30]}  Qd8 {[%clk 0:02:10]} 19. a5 {[%clk 0:01:18]}  Qxa5 {[%clk 0:01:57]} 20. Ra1 {[%clk 0:01:14]}  Qd8 {[%clk 0:01:33]} 21. Qb1 {[%clk 0:01:14]}  b6 {[%clk 0:01:19]} 22. Qb5 {[%clk 0:01:01]}  Kb7 {[%clk 0:00:51]} 23. Qa6+ {[%clk 0:00:54]}  Ka8 {[%clk 0:00:51]} 24. Reb1 {[%clk 0:00:55]}  Bc8 {[%clk 0:00:39]} 25. Qxb6 {[%clk 0:00:51]}  Qxb6 {[%clk 0:00:39]} 26. Rxb6 {[%clk 0:00:52]}  Bb7 {[%clk 0:00:27]} 27. Bc5 {[%clk 0:00:52]}  Nf8 {[%clk 0:00:23]} 28. Rxc6 {[%clk 0:00:34]}  Bxc6 {[%clk 0:00:24]} 29. Rxa7+ {[%clk 0:00:34]}  Kb8 {[%clk 0:00:24]} 30. Re7 {[%clk 0:00:35]}  Bd7 {[%clk 0:00:20]} 31. Rf7 {[%clk 0:00:30]}  Kc8 {[%clk 0:00:20]} 32. Nh4 {[%clk 0:00:22]}  Ng6 {[%clk 0:00:19]} 33. Nxg6 {[%clk 0:00:21]}  Rxg6 {[%clk 0:00:20]} 34. Be2 {[%clk 0:00:19]}  h5 {[%clk 0:00:20]} 35. Kh2 {[%clk 0:00:16]}  h4 {[%clk 0:00:19]} 36. Bf3 {[%clk 0:00:16]}  Kd8 {[%clk 0:00:19]} 37. Bd6 {[%clk 0:00:14]}  Rgh6 {[%clk 0:00:18]} 38. Rg7 {[%clk 0:00:10]}  R6h7 {[%clk 0:00:17]} 39. Rg6 {[%clk 0:00:09]}  Rh6 {[%clk 0:00:15]} 40. Rg5 {[%clk 0:00:10]}  Ba4 {[%clk 0:00:12]} 41. Bd1 {[%clk 0:00:07]}  Be8 {[%clk 0:00:10]} 42. Rg7 {[%clk 0:00:03]}  R6h7 {[%clk 0:00:10]} 43. Rg5 {[%clk 0:00:03]}  Bh5 {[%clk 0:00:10]} 44. Bxh5 {[%clk 0:00:02]}  Rxh5 {[%clk 0:00:09]} 45. Rg6 {[%clk 0:00:03]}  R5h6 {[%clk 0:00:10]} 46. Rg7 {[%clk 0:00:04]}  R6h7 {[%clk 0:00:10]} 47. Rg6 {[%clk 0:00:04]}  Kd7 {[%clk 0:00:10]} 48. Bc5 {[%clk 0:00:05]}  Ra8 {[%clk 0:00:09]} 49. Rf6 {[%clk 0:00:03]}  Ra2 {[%clk 0:00:08]} 50. Rf8 {[%clk 0:00:03]}  Rxc2 {[%clk 0:00:08]} 51. Bb4 {[%clk 0:00:04]}  Rb2 {[%clk 0:00:08]} 52. Ra8 {[%clk 0:00:04]}  Rxb4 {[%clk 0:00:07]} 53. cxb4 {[%clk 0:00:05]}  Kc6 {[%clk 0:00:07]} 54. Ra5 {[%clk 0:00:04]}  Rb7 {[%clk 0:00:06]} 55. Ra6+ {[%clk 0:00:04]}  Kb5 {[%clk 0:00:06]} 56. Rxe6 {[%clk 0:00:04]}  Rc7 {[%clk 0:00:04]} 57. Re8 {[%clk 0:00:02]}  c3 {[%clk 0:00:04]} 58. Ra8 {[%clk 0:00:02]}  c2 {[%clk 0:00:03]} 0-1


[Site "https://www.chess.com"]

[Event "Titled Tuesday Blitz May 24 Early 2022"]
[White "Yuan, Qingyu"]
[Black "Kozak, Antoni"]
[WhiteFideId "8609772"]
[BlackFideId "21832030"]
[WhiteElo "2359"]
[BlackElo "2322"]
[Result "1-0"]
[Round "10"]
[TimeControl "180+1"]
[Date "2022.05.24"]
[WhiteClock "0:00:07"]
[BlackClock "0:00:04"]

1. e4 {[%clk 0:03:00]}  c5 {[%clk 0:02:58]} 2. Nf3 {[%clk 0:03:01]}  d6 {[%clk 0:02:58]} 3. Bb5+ {[%clk 0:03:01]}  Nd7 {[%clk 0:02:50]} 4. c4 {[%clk 0:03:01]}  Nf6 {[%clk 0:02:48]} 5. Nc3 {[%clk 0:03:01]}  e6 {[%clk 0:02:42]} 6. O-O {[%clk 0:02:59]}  Be7 {[%clk 0:02:42]} 7. d4 {[%clk 0:02:59]}  cxd4 {[%clk 0:02:42]} 8. Nxd4 {[%clk 0:02:59]}  O-O {[%clk 0:02:42]} 9. Qe2 {[%clk 0:02:59]}  Nc5 {[%clk 0:02:23]} 10. Rd1 {[%clk 0:02:55]}  a6 {[%clk 0:02:22]} 11. b4 {[%clk 0:02:39]}  axb5 {[%clk 0:02:18]} 12. bxc5 {[%clk 0:02:39]}  b4 {[%clk 0:01:45]} 13. Ncb5 {[%clk 0:02:35]}  dxc5 {[%clk 0:01:44]} 14. Nxe6 {[%clk 0:02:25]}  Bxe6 {[%clk 0:01:44]} 15. Rxd8 {[%clk 0:02:25]}  Raxd8 {[%clk 0:01:38]} 16. e5 {[%clk 0:02:20]}  Ne4 {[%clk 0:01:30]} 17. Be3 {[%clk 0:02:09]}  Bd7 {[%clk 0:01:18]} 18. f3 {[%clk 0:01:38]}  Bxb5 {[%clk 0:01:15]} 19. cxb5 {[%clk 0:01:38]}  Nc3 {[%clk 0:01:14]} 20. Qc4 {[%clk 0:01:39]}  b6 {[%clk 0:01:10]} 21. Rc1 {[%clk 0:01:28]}  Ra8 {[%clk 0:01:02]} 22. Rc2 {[%clk 0:01:28]}  Kh8 {[%clk 0:00:47]} 23. Bd2 {[%clk 0:01:25]}  Nb1 {[%clk 0:00:43]} 24. Bc1 {[%clk 0:01:10]}  h6 {[%clk 0:00:37]} 25. e6 {[%clk 0:00:53]}  fxe6 {[%clk 0:00:34]} 26. Qxe6 {[%clk 0:00:53]}  Bf6 {[%clk 0:00:33]} 27. Qxb6 {[%clk 0:00:49]}  Bd4+ {[%clk 0:00:32]} 28. Kh1 {[%clk 0:00:49]}  Rae8 {[%clk 0:00:31]} 29. h4 {[%clk 0:00:38]}  Nc3 {[%clk 0:00:22]} 30. Qc6 {[%clk 0:00:33]}  Ne2 {[%clk 0:00:18]} 31. Bxh6 {[%clk 0:00:24]}  Ng3+ {[%clk 0:00:17]} 32. Kh2 {[%clk 0:00:24]}  Nf1+ {[%clk 0:00:17]} 33. Kh3 {[%clk 0:00:24]}  gxh6 {[%clk 0:00:17]} 34. Qxh6+ {[%clk 0:00:24]}  Kg8 {[%clk 0:00:17]} 35. Qg6+ {[%clk 0:00:24]}  Kh8 {[%clk 0:00:18]} 36. b6 {[%clk 0:00:20]}  Ne3 {[%clk 0:00:16]} 37. Rd2 {[%clk 0:00:20]}  Nf5 {[%clk 0:00:17]} 38. b7 {[%clk 0:00:17]}  Ng7 {[%clk 0:00:13]} 39. h5 {[%clk 0:00:15]}  Re6 {[%clk 0:00:13]} 40. Qg4 {[%clk 0:00:12]}  Rb6 {[%clk 0:00:12]} 41. Qc8 {[%clk 0:00:12]}  Kg8 {[%clk 0:00:09]} 42. Re2 {[%clk 0:00:12]}  c4 {[%clk 0:00:03]} 43. Kg4 {[%clk 0:00:10]}  c3 {[%clk 0:00:03]} 44. h6 {[%clk 0:00:10]}  Rg6+ {[%clk 0:00:02]} 45. Kh3 {[%clk 0:00:09]}  Rxh6+ {[%clk 0:00:03]} 46. Kg3 {[%clk 0:00:09]}  Rg6+ {[%clk 0:00:04]} 47. Kh4 {[%clk 0:00:07]}  Rh6+ {[%clk 0:00:04]} 48. Kg5 {[%clk 0:00:04]}  Rb6 {[%clk 0:00:05]} 49. f4 {[%clk 0:00:02]}  Bf6+ {[%clk 0:00:03]} 50. Kg4 {[%clk 0:00:03]}  Kf7 {[%clk 0:00:02]} 51. g3 {[%clk 0:00:03]}  Kg8 {[%clk 0:00:02]} 52. Kf3 {[%clk 0:00:02]}  Kf7 {[%clk 0:00:03]} 53. g4 {[%clk 0:00:02]}  b3 {[%clk 0:00:04]} 54. axb3 {[%clk 0:00:02]}  c2 {[%clk 0:00:04]} 55. Rxc2 {[%clk 0:00:02]}  Rxb3+ {[%clk 0:00:04]} 56. Kg2 {[%clk 0:00:03]}  Re8 {[%clk 0:00:05]} 57. Rc7+ {[%clk 0:00:03]}  Kf8 {[%clk 0:00:05]} 58. g5 {[%clk 0:00:04]}  Bd4 {[%clk 0:00:05]} 59. Rxg7 {[%clk 0:00:04]}  Bxg7 {[%clk 0:00:04]} 60. Qc7 {[%clk 0:00:04]}  Re7 {[%clk 0:00:04]} 61. Qc8+ {[%clk 0:00:04]}  Re8 {[%clk 0:00:05]} 62. Qc7 {[%clk 0:00:05]}  Rb2+ {[%clk 0:00:06]} 63. Kf3 {[%clk 0:00:05]}  Re7 {[%clk 0:00:06]} 64. b8=Q+ {[%clk 0:00:05]}  Kf7 {[%clk 0:00:07]} 65. Qxb2 {[%clk 0:00:05]}  Bxb2 {[%clk 0:00:07]} 66. Qc4+ {[%clk 0:00:05]}  Kf8 {[%clk 0:00:07]} 67. f5 {[%clk 0:00:05]}  Be5 {[%clk 0:00:05]} 68. Kg4 {[%clk 0:00:05]}  Rd7 {[%clk 0:00:05]} 69. Qe6 {[%clk 0:00:05]}  Rd4+ {[%clk 0:00:05]} 70. Kh5 {[%clk 0:00:06]}  Bc7 {[%clk 0:00:04]} 71. Qf6+ {[%clk 0:00:06]}  Ke8 {[%clk 0:00:04]} 72. Qxd4 {[%clk 0:00:07]} 1-0


[Site "https://www.chess.com"]